[Event "GER-ch Youth U10W 2020"]
[Site "Willingen"]
[Date "2020.10.27"]
[Round "1.9"]
[White "Mehner, Clara"]
[Black "Tran, Hanna Emilie Mai Hoa"]
[Result "0-1"]
[ECO "C50"]
[WhiteElo "1244"]
[BlackElo "986"]
[Annotator "NA RC"]
[PlyCount "70"]
[EventDate "2020.10.27"]
[EventType "swiss"]
[EventRounds "7"]
[EventCountry "GER"]
[SourceTitle "playchess.com"]
[Source "ChessBase"]
[SourceQuality "1"]
[TimeControl "40/4500+30:900+30"]

1. e4 {[%emt 0:00:00]} e5 {[%emt 0:00:00]} 2. Nf3 {[%emt 0:00:00]} Nc6 {[%emt 0:00:00]} 3. Bc4 {[%emt 0:00:00]} d6 {[%emt 0:00:18]} 4. d3 {[%emt 0:00:51]} Bg4 {[%emt 0:00:22]} 5. Nc3 {[%emt 0:00:47]} Nf6 {[%emt 0:00:22]} 6. Be3 {[%emt 0:01:03]} Be7 {[%emt 0:00:25]} 7. O-O {[%emt 0:02:08]} O-O {[%emt 0:03:27]} 8. Qe2 {[%emt 0:04:14]} Na5 {[%emt 0:03:17]} 9. Bb3 {[%emt 0:03:51]} Nxb3 {[%emt 0:01:41]} 10. axb3 {[%emt 0:01:22]} d5 {[%emt 0:00:29]} 11. exd5 {[%emt 0:02:52]} Nxd5 {[%emt 0:00:18]} 12. Nxd5 {[%emt 0:00:27]} Qxd5 {[%emt 0:00:13]} 13. c4 {[%emt 0:02:19]} Bxf3 {[%emt 0:00:58]} 14. gxf3 {[%emt 0:02:28]} Qe6 {[%emt 0:00:44]} 15. Kh1 {[%emt 0:03:59]} Qh3 {[%emt 0:00:48]} 16. Rg1 {[%emt 0:04:05]} Bd6 {[%emt 0:01:39]} 17. Rg2 {[%emt 0:03:57]} g6 {[%emt 0:00:28]} 18. Rg3 {[%emt 0:02:06]} Qe6 {[%emt 0:01:40]} 19. Rg4 {[%emt 0:06:03]} f5 {[%emt 0:04:02]} 20. Rh4 {[%emt 0:02:33]} e4 {[%emt 0:03:02]} 21. fxe4 {[%emt 0:01:25]} fxe4 {[%emt 0:00:23]} 22. dxe4 {[%emt 0:01:01]} Rf7 {[%emt 0:01:47]} 23. Bh6 {[%emt 0:05:44]} Be7 {[%emt 0:02:51]} 24. Rf4 {[%emt 0:01:28]} Bd6 {[%emt 0:01:09]} 25. Rxf7 {[%emt 0:01:26]} Qxf7 {[%emt 0:00:17]} 26. Qc2 {[%emt 0:01:07]} Qf3+ {[%emt 0:01:02]} 27. Kg1 {[%emt 0:01:00]} Qg4+ {[%emt 0:00:10]} 28. Kf1 {[%emt 0:00:45]} Qh3+ {[%emt 0:00:11]} 29. Ke2 {[%emt 0:02:45]} Qxh6 {[%emt 0:00:33]} 30. c5 {[%emt 0:02:28]} Qh5+ {[%emt 0:00:23]} 31. Kd3 {[%emt 0:00:58]} Bxc5 {[%emt 0:00:46]} 32. Rc1 {[%emt 0:02:03]} Rd8+ {[%emt 0:00:30]} 33. Kc3 {[%emt 0:04:04]} Qe5+ {[%emt 0:00:38]} 34. Kc4 {[%emt 0:00:31]} Qd4+ {[%emt 0:00:33]} 35. Kb5 {[%emt 0:02:32]} Qb4# 0-1

[Event "GER-ch Youth U10W 2020"]
[Site "Willingen"]
[Date "2020.10.27"]
[Round "1.10"]
[White "Le, Thi An"]
[Black "Hoffmann, Svenja"]
[Result "0-1"]
[ECO "C54"]
[WhiteElo "976"]
[BlackElo "1219"]
[Annotator "NA RC"]
[PlyCount "76"]
[EventDate "2020.10.27"]
[EventType "swiss"]
[EventRounds "7"]
[EventCountry "GER"]
[SourceTitle "playchess.com"]
[Source "ChessBase"]
[SourceQuality "1"]
[TimeControl "40/4500+30:900+30"]

1. e4 {[%emt 0:00:00]} e5 {[%emt 0:00:00]} 2. Nf3 {[%emt 0:00:00]} Nc6 {[%emt 0:00:02]} 3. Bc4 {[%emt 0:00:00]} Bc5 {[%emt 0:00:37]} 4. c3 {[%emt 0:00:00]} Nf6 {[%emt 0:00:33]} 5. d4 {[%emt 0:00:00]} exd4 {[%emt 0:00:31]} 6. cxd4 {[%emt 0:00:04]} Bb4+ {[%emt 0:00:29]} 7. Bd2 {[%emt 0:00:07]} Bxd2+ {[%emt 0:00:24]} 8. Nbxd2 {[%emt 0:00:08]} d5 {[%emt 0:01:00]} 9. exd5 {[%emt 0:00:08]} Nxd5 {[%emt 0:00:09]} 10. Qb3 {[%emt 0:00:11]} Be6 {[%emt 0:00:32]} 11. Qxb7 {[%emt 0:00:12]} Ndb4 {[%emt 0:03:39]} 12. O-O {[%emt 0:01:37]} Rb8 {[%emt 0:00:28]} 13. Qxb8 {[%emt 0:01:41]} Qxb8 {[%emt 0:00:16]} 14. a3 {[%emt 0:01:09]} Nc2 {[%emt 0:00:18]} 15. Rac1 {[%emt 0:00:28]} N2xd4 {[%emt 0:00:49]} 16. Nxd4 {[%emt 0:00:48]} Nxd4 {[%emt 0:00:17]} 17. Bxe6 {[%emt 0:00:41]} Nxe6 {[%emt 0:00:43]} 18. Ne4 {[%emt 0:00:39]} O-O {[%emt 0:00:44]} 19. b4 {[%emt 0:01:04]} Qa8 {[%emt 0:01:35]} 20. Rfe1 {[%emt 0:02:13]} Re8 {[%emt 0:00:22]} 21. Re3 {[%emt 0:01:51]} Nf4 {[%emt 0:01:03]} 22. f3 {[%emt 0:00:35]} Qb8 {[%emt 0:03:00]} 23. Rce1 {[%emt 0:00:54]} Qb6 {[%emt 0:00:30]} 24. Kh1 {[%emt 0:00:31]} Ne6 {[%emt 0:02:16]} 25. Nc5 {[%emt 0:00:43]} g6 {[%emt 0:01:09]} 26. Rc3 {[%emt 0:01:17]} a5 {[%emt 0:02:24]} 27. Rc4 {[%emt 0:00:37]} Rd8 {[%emt 0:02:39]} 28. bxa5 {[%emt 0:02:08]} Qb5 {[%emt 0:00:55]} 29. Rc2 {[%emt 0:01:18]} Nxc5 {[%emt 0:00:14]} 30. h4 {[%emt 0:01:57]} Nd3 {[%emt 0:01:15]} 31. Re3 {[%emt 0:00:34]} Qxa5 {[%emt 0:00:39]} 32. g4 {[%emt 0:01:35]} Qxa3 {[%emt 0:01:21]} 33. Rxc7 {[%emt 0:00:37]} Nf2+ {[%emt 0:01:33]} 34. Kg1 {[%emt 0:01:07]} Qxe3 {[%emt 0:00:09]} 35. Kf1 {[%emt 0:00:46]} Rd1+ {[%emt 0:00:11]} 36. Kg2 {[%emt 0:00:11]} Nxg4 {[%emt 0:00:50]} 37. f4 {[%emt 0:00:48]} Rd2+ {[%emt 0:00:56]} 38. Kf1 {[%emt 0:00:13]} Qf2# {[%emt 0:00:05]} 0-1

[Event "GER-ch Youth U10W 2020"]
[Site "Willingen"]
[Date "2020.10.27"]
[Round "1.11"]
[White "Bako, Isabella"]
[Black "Nalam, Mokshadha"]
[Result "0-1"]
[ECO "C44"]
[WhiteElo "1153"]
[BlackElo "962"]
[Annotator "NA RC"]
[PlyCount "126"]
[EventDate "2020.10.27"]
[EventType "swiss"]
[EventRounds "7"]
[EventCountry "GER"]
[SourceTitle "playchess.com"]
[Source "ChessBase"]
[SourceQuality "1"]
[TimeControl "40/4500+30:900+30"]

1. e4 {[%emt 0:00:00]} e5 {[%emt 0:00:00]} 2. Nf3 {[%emt 0:00:29]} Nc6 {[%emt 0:00:00]} 3. d4 {[%emt 0:00:19]} exd4 {[%emt 0:00:00]} 4. c3 {[%emt 0:01:07]} dxc3 {[%emt 0:00:00]} 5. Bc4 {[%emt 0:00:38]} Bb4 {[%emt 0:00:47]} 6. Nxc3 {[%emt 0:01:55]} d6 {[%emt 0:00:42]} 7. Qb3 {[%emt 0:06:39]} Qe7 {[%emt 0:00:44]} 8. Ng5 {[%emt 0:04:39]} Bxc3+ {[%emt 0:00:45]} 9. bxc3 {[%emt 0:01:42]} Be6 {[%emt 0:00:59]} 10. Bxe6 {[%emt 0:04:39]} fxe6 11. Qxe6 Qxe6 {[%emt 0:03:20]} 12. Nxe6 {[%emt 0:00:48]} Kf7 {[%emt 0:01:51]} 13. Nxc7 {[%emt 0:00:27]} Rc8 {[%emt 0:00:41]} 14. Nd5 {[%emt 0:06:01]} Nge7 {[%emt 0:00:21]} 15. Ba3 {[%emt 0:06:11]} Rhe8 {[%emt 0:00:33]} 16. Nxe7 {[%emt 0:02:06]} Rxe7 {[%emt 0:00:09]} 17. f3 {[%emt 0:00:41]} Re6 {[%emt 0:00:44]} 18. O-O {[%emt 0:02:28]} Na5 {[%emt 0:01:06]} 19. Rac1 {[%emt 0:04:57]} Kg8 {[%emt 0:01:05]} 20. Rfd1 {[%emt 0:04:01]} Nc4 {[%emt 0:00:42]} 21. Bb4 {[%emt 0:01:39]} a5 {[%emt 0:00:22]} 22. Bxd6 {[%emt 0:11:08]} Nxd6 {[%emt 0:00:12]} 23. e5 {[%emt 0:01:44]} Nc4 {[%emt 0:01:02]} 24. f4 {[%emt 0:02:30]} h6 {[%emt 0:00:40]} 25. Rd5 {[%emt 0:07:17]} Rf8 {[%emt 0:02:30]} 26. g3 {[%emt 0:00:58]} b6 {[%emt 0:00:27]} 27. Rd4 {[%emt 0:01:52]} Na3 {[%emt 0:02:23]} 28. c4 {[%emt 0:02:13]} Rc8 {[%emt 0:00:39]} 29. Re4 {[%emt 0:06:15]} g6 {[%emt 0:00:22]} 30. g4 {[%emt 0:00:36]} b5 {[%emt 0:00:33]} 31. Re3 {[%emt 0:01:52]} Nxc4 {[%emt 0:00:39]} 32. Rb3 {[%emt 0:01:09]} b4 {[%emt 0:01:15]} 33. Rd3 {[%emt 0:00:52]} g5 {[%emt 0:00:53]} 34. Rd4 {[%emt 0:01:03]} Rec6 {[%emt 0:01:32]} 35. e6 {[%emt 0:00:39]} Kf8 {[%emt 0:03:13]} 36. f5 {[%emt 0:00:14]} Nd6 {[%emt 0:01:13]} 37. Rxc6 {[%emt 0:00:25]} Rxc6 {[%emt 0:00:09]} 38. f6 {[%emt 0:00:28]} Ne8 {[%emt 0:00:47]} 39. f7 {[%emt 0:00:39]} Rxe6 {[%emt 0:00:48]} 40. fxe8=Q+ {[%emt 0:00:25]} Rxe8 {[%emt 0:00:14]} 41. Rd5 {[%emt 0:15:25]} Re1+ {[%emt 0:15:30]} 42. Kf2 {[%emt 0:00:39]} Ra1 {[%emt 0:00:35]} 43. Rxa5 {[%emt 0:00:17]} b3 {[%emt 0:00:14]} 44. Rb5 {[%emt 0:00:00]} bxa2 {[%emt 0:00:00]} 45. Ra5 {[%emt 0:00:00]} Ke7 {[%emt 0:00:00]} 46. Ke3 {[%emt 0:00:00]} Re1+ {[%emt 0:00:00]} 47. Kd4 {[%emt 0:00:00]} a1=Q+ {[%emt 0:00:00]} 48. Rxa1 {[%emt 0:00:00]} Rxa1 {[%emt 0:00:00]} 49. Ke4 {[%emt 0:00:00]} Rh1 {[%emt 0:00:00]} 50. Kf5 {[%emt 0:00:00]} Rxh2 {[%emt 0:00:00]} 51. Ke5 {[%emt 0:00:00]} h5 {[%emt 0:00:00]} 52. gxh5 {[%emt 0:00:00]} Rxh5 {[%emt 0:00:00]} 53. Kf5 {[%emt 0:00:00]} Kf7 {[%emt 0:00:00]} 54. Kg4 {[%emt 0:00:00]} Kg6 {[%emt 0:00:00]} 55. Kg3 {[%emt 0:00:00]} Kf5 {[%emt 0:00:00]} 56. Kf3 {[%emt 0:00:00]} Rh4 {[%emt 0:00:00]} 57. Kg3 {[%emt 0:00:00]} Ke4 {[%emt 0:00:00]} 58. Kf2 {[%emt 0:00:00]} Kf4 {[%emt 0:00:00]} 59. Kg2 {[%emt 0:00:00]} Rg4+ {[%emt 0:00:00]} 60. Kh3 {[%emt 0:00:00]} Kf3 {[%emt 0:00:00]} 61. Kh2 {[%emt 0:00:00]} Rh4+ {[%emt 0:00:00]} 62. Kg1 {[%emt 0:00:00]} g4 {[%emt 0:00:00]} 63. Kf1 Rh1# 0-1

[Event "GER-ch Youth U10W 2020"]
[Site "Willingen"]
[Date "2020.10.27"]
[Round "1.12"]
[White "Yan, Jenny"]
[Black "Richter, Johanna"]
[Result "1-0"]
[ECO "B34"]
[WhiteElo "952"]
[BlackElo "1150"]
[Annotator "NA RC"]
[PlyCount "36"]
[EventDate "2020.10.27"]
[EventType "swiss"]
[EventRounds "7"]
[EventCountry "GER"]
[SourceTitle "playchess.com"]
[Source "ChessBase"]
[SourceQuality "1"]
[TimeControl "40/4500+30:900+30"]

1. e4 {[%emt 0:00:00]} c5 {[%emt 0:00:00]} 2. Nf3 {[%emt 0:00:00]} Nc6 {[%emt 0:00:03]} 3. d4 {[%emt 0:00:18]} cxd4 {[%emt 0:00:16]} 4. Nxd4 {[%emt 0:00:19]} Nf6 {[%emt 0:00:16]} 5. Nc3 {[%emt 0:00:31]} e5 {[%emt 0:00:15]} 6. Ndb5 {[%emt 0:00:51]} d6 {[%emt 0:00:25]} 7. Nd5 {[%emt 0:00:41]} Nxd5 {[%emt 0:00:35]} 8. exd5 {[%emt 0:00:44]} Ne7 {[%emt 0:00:39]} 9. Be2 {[%emt 0:01:00]} Bf5 {[%emt 0:06:56]} 10. Be3 Be4 {[%emt 0:09:08]} 11. f3 {[%emt 0:07:38]} Bxd5 {[%emt 0:02:06]} 12. Bxa7 {[%emt 0:02:44]} Qa5+ {[%emt 0:00:45]} 13. c3 Rd8 {[%emt 0:42:34]} 14. Be3 {[%emt 0:03:30]} g6 {[%emt 0:03:19]} 15. b4 Qxb5 {[%emt 0:14:38]} 16. Bxb5+ {[%emt 0:00:48]} Bc6 {[%emt 0:00:29]} 17. Bxc6+ {[%emt 0:00:15]} bxc6 {[%emt 0:00:34]} 18. Bg5 {[%emt 0:00:26]} d5 {[%emt 0:00:00]} 1-0

[Event "GER-ch Youth U10W 2020"]
[Site "Willingen"]
[Date "2020.10.27"]
[Round "1.13"]
[White "Will, Elina"]
[Black "Mo, Keyou"]
[Result "1-0"]
[ECO "C44"]
[WhiteElo "1149"]
[BlackElo "950"]
[Annotator "NA RC"]
[PlyCount "123"]
[EventDate "2020.10.27"]
[EventType "swiss"]
[EventRounds "7"]
[EventCountry "GER"]
[SourceTitle "playchess.com"]
[Source "ChessBase"]
[SourceQuality "1"]
[TimeControl "40/4500+30:900+30"]

1. e4 {[%emt 0:00:00]} e5 {[%emt 0:00:00]} 2. Nf3 {[%emt 0:00:00]} Nc6 {[%emt 0:00:00]} 3. d4 {[%emt 0:00:00]} exd4 {[%emt 0:00:00]} 4. Nxd4 {[%emt 0:00:08]} Ne5 {[%emt 0:01:03]} 5. Bf4 {[%emt 0:00:43]} d6 {[%emt 0:00:39]} 6. Nc3 {[%emt 0:00:33]} Nf6 {[%emt 0:00:53]} 7. Be2 {[%emt 0:00:43]} Be7 {[%emt 0:01:40]} 8. O-O {[%emt 0:00:45]} O-O {[%emt 0:03:07]} 9. Qd2 {[%emt 0:01:25]} Bg4 {[%emt 0:01:58]} 10. h3 {[%emt 0:00:44]} Bxe2 {[%emt 0:00:07]} 11. Ncxe2 {[%emt 0:00:45]} Nxe4 {[%emt 0:00:57]} 12. Qd1 {[%emt 0:00:46]} Ng6 {[%emt 0:05:29]} 13. a3 {[%emt 0:02:54]} Bf6 {[%emt 0:02:27]} 14. Qd3 {[%emt 0:03:33]} d5 {[%emt 0:01:38]} 15. Nb5 {[%emt 0:01:46]} c6 {[%emt 0:02:19]} 16. Nbd4 {[%emt 0:02:12]} Be5 {[%emt 0:01:47]} 17. Be3 {[%emt 0:03:28]} c5 {[%emt 0:02:01]} 18. Nf3 {[%emt 0:00:54]} Bxb2 {[%emt 0:00:46]} 19. Rad1 {[%emt 0:02:22]} Bxa3 {[%emt 0:01:52]} 20. Qxe4 {[%emt 0:01:14]} dxe4 {[%emt 0:01:07]} 21. Rxd8 {[%emt 0:00:28]} Raxd8 {[%emt 0:00:14]} 22. Ng5 {[%emt 0:01:38]} h6 {[%emt 0:01:42]} 23. Nxe4 {[%emt 0:00:19]} b6 {[%emt 0:01:04]} 24. Ra1 {[%emt 0:00:17]} Bb2 {[%emt 0:00:31]} 25. Rxa7 {[%emt 0:00:45]} Bd4 {[%emt 0:01:10]} 26. Bxd4 {[%emt 0:04:19]} cxd4 {[%emt 0:03:35]} 27. Rb7 {[%emt 0:02:52]} Rb8 {[%emt 0:00:01]} 28. Rxb8 {[%emt 0:00:41]} Rxb8 {[%emt 0:00:14]} 29. Nxd4 b5 {[%emt 0:00:42]} 30. Kf1 {[%emt 0:01:37]} b4 {[%emt 0:01:29]} 31. Ke2 {[%emt 0:01:40]} Nf4+ {[%emt 0:00:04]} 32. Kf3 {[%emt 0:00:30]} Nd5 {[%emt 0:00:23]} 33. Nc5 {[%emt 0:01:38]} g5 {[%emt 0:01:40]} 34. Ke4 {[%emt 0:01:30]} Nc3+ {[%emt 0:01:05]} 35. Kd3 {[%emt 0:00:22]} Kg7 {[%emt 0:01:01]} 36. Kc4 {[%emt 0:01:20]} Na2 {[%emt 0:04:03]} 37. Kb3 {[%emt 0:01:00]} Nc1+ {[%emt 0:01:35]} 38. Kb2 {[%emt 0:00:20]} Rc8 {[%emt 0:01:17]} 39. Nd3 {[%emt 0:02:34]} Rd8 {[%emt 0:00:55]} 40. Kxc1 {[%emt 0:01:17]} Rxd4 {[%emt 0:00:17]} 41. Kb2 {[%emt 0:15:13]} f5 {[%emt 0:17:18]} 42. Kb3 {[%emt 0:00:24]} Kg6 {[%emt 0:01:09]} 43. Nxb4 {[%emt 0:00:15]} g4 {[%emt 0:00:36]} 44. h4 {[%emt 0:00:37]} f4 {[%emt 0:00:59]} 45. g3 {[%emt 0:00:37]} fxg3 {[%emt 0:06:21]} 46. fxg3 {[%emt 0:04:01]} Rd8 {[%emt 0:06:08]} 47. c4 {[%emt 0:00:37]} Rc8 {[%emt 0:00:48]} 48. Nd5 {[%emt 0:00:10]} Kf5 {[%emt 0:00:54]} 49. Ne7+ {[%emt 0:03:37]} Ke4 {[%emt 0:00:29]} 50. Nxc8 {[%emt 0:00:13]} Kf3 {[%emt 0:00:11]} 51. c5 {[%emt 0:00:18]} Kxg3 52. c6 Kxh4 53. c7 g3 {[%emt 0:02:08]} 54. Ne7 {[%emt 0:01:07]} g2 {[%emt 0:01:11]} 55. Ng6+ {[%emt 0:00:54]} Kg5 {[%emt 0:00:19]} 56. Ne5 {[%emt 0:01:16]} g1=Q 57. Nf3+ Kg6 {[%emt 0:01:24]} 58. Nxg1 {[%emt 0:00:35]} h5 {[%emt 0:00:19]} 59. c8=Q {[%emt 0:00:07]} Kg5 {[%emt 0:01:39]} 60. Qg8+ {[%emt 0:00:36]} Kh4 {[%emt 0:00:20]} 61. Ne2 {[%emt 0:00:31]} Kh3 {[%emt 0:00:23]} 62. Qg3# 1-0

[Event "GER-ch Youth U10W 2020"]
[Site "Willingen"]
[Date "2020.10.27"]
[Round "1.14"]
[White "Rössling, Laura Marie"]
[Black "John, Linnea"]
[Result "1-0"]
[ECO "B30"]
[WhiteElo "937"]
[BlackElo "1146"]
[Annotator "NA RC"]
[PlyCount "108"]
[EventDate "2020.10.27"]
[EventType "swiss"]
[EventRounds "7"]
[EventCountry "GER"]
[SourceTitle "playchess.com"]
[Source "ChessBase"]
[SourceQuality "1"]
[TimeControl "40/4500+30:900+30"]

1. e4 {[%emt 0:00:00]} c5 {[%emt 0:00:00]} 2. Nf3 {[%emt 0:00:00]} Nc6 {[%emt 0:00:00]} 3. Bc4 {[%emt 0:00:00]} g6 {[%emt 0:00:20]} 4. c3 {[%emt 0:01:45]} Bg7 {[%emt 0:02:39]} 5. d4 {[%emt 0:02:01]} cxd4 {[%emt 0:01:27]} 6. cxd4 {[%emt 0:01:05]} d6 {[%emt 0:00:34]} 7. h3 {[%emt 0:01:46]} Nf6 {[%emt 0:00:16]} 8. Qd3 {[%emt 0:02:00]} O-O {[%emt 0:00:45]} 9. Nc3 {[%emt 0:00:27]} Bd7 {[%emt 0:07:36]} 10. Bg5 {[%emt 0:00:45]} Nb4 {[%emt 0:01:49]} 11. Qe3 {[%emt 0:00:39]} Nc2+ {[%emt 0:00:38]} 12. Ke2 {[%emt 0:00:59]} Nxe3 {[%emt 0:00:39]} 13. Bxe3 {[%emt 0:00:19]} Rc8 14. Bb3 Qb6 {[%emt 0:05:01]} 15. d5 {[%emt 0:02:08]} Qa6+ {[%emt 0:01:46]} 16. Ke1 {[%emt 0:00:27]} Qa5 {[%emt 0:01:33]} 17. Bd2 {[%emt 0:02:44]} Qd8 {[%emt 0:03:16]} 18. e5 {[%emt 0:04:07]} dxe5 {[%emt 0:01:54]} 19. Nxe5 {[%emt 0:02:36]} Bf5 {[%emt 0:06:49]} 20. Ba4 {[%emt 0:02:36]} Ne4 {[%emt 0:00:58]} 21. Nxe4 {[%emt 0:00:37]} Bxe4 {[%emt 0:00:51]} 22. Nd7 {[%emt 0:03:03]} Bxb2 {[%emt 0:01:23]} 23. Nxf8 {[%emt 0:00:35]} Bxa1 {[%emt 0:00:57]} 24. Nd7 {[%emt 0:02:38]} f6 {[%emt 0:00:51]} 25. Rg1 {[%emt 0:01:16]} a6 {[%emt 0:00:52]} 26. Be3 {[%emt 0:01:07]} Qa5+ {[%emt 0:01:35]} 27. Bd2 {[%emt 0:01:27]} Qxa4 {[%emt 0:01:43]} 28. Nb6 {[%emt 0:01:33]} Qb5 {[%emt 0:02:20]} 29. Nxc8 {[%emt 0:00:44]} Qb1+ {[%emt 0:00:51]} 30. Ke2 {[%emt 0:01:52]} Qxg1 {[%emt 0:00:36]} 31. Nxe7+ {[%emt 0:00:45]} Kf7 {[%emt 0:02:58]} 32. d6 {[%emt 0:00:33]} Qxg2 {[%emt 0:02:46]} 33. Bb4 {[%emt 0:00:48]} Qf3+ {[%emt 0:01:50]} 34. Ke1 {[%emt 0:02:17]} Bd3 {[%emt 0:00:14]} 35. Kd2 {[%emt 0:00:22]} Qxf2+ {[%emt 0:00:49]} 36. Kxd3 {[%emt 0:00:20]} Qd4+ {[%emt 0:00:20]} 37. Kc2 {[%emt 0:00:26]} Qxb4 {[%emt 0:00:22]} 38. Nd5 {[%emt 0:00:40]} Qc5+ {[%emt 0:00:30]} 39. Kd3 {[%emt 0:00:13]} Qxd5+ {[%emt 0:00:28]} 40. Ke3 {[%emt 0:01:02]} f5 {[%emt 0:00:48]} 41. Ke2 {[%emt 0:15:33]} Qe6+ {[%emt 0:15:21]} 42. Kd2 {[%emt 0:00:14]} Qxd6+ {[%emt 0:00:18]} 43. Kc2 {[%emt 0:00:32]} f4 {[%emt 0:00:46]} 44. Kb3 {[%emt 0:02:50]} f3 {[%emt 0:00:43]} 45. a4 {[%emt 0:00:08]} f2 {[%emt 0:00:47]} 46. Kc2 {[%emt 0:00:30]} f1=Q {[%emt 0:00:08]} 47. Kb3 {[%emt 0:00:10]} Qdd3+ {[%emt 0:00:46]} 48. Kb4 {[%emt 0:00:39]} Qf4+ {[%emt 0:00:20]} 49. Kc5 {[%emt 0:01:07]} Qdf5+ {[%emt 0:00:16]} 50. Kb6 {[%emt 0:01:19]} Qd6+ {[%emt 0:00:14]} 51. Ka7 {[%emt 0:00:14]} Bd4+ {[%emt 0:00:40]} 52. Ka8 {[%emt 0:00:30]} Qd8+ {[%emt 0:00:13]} 53. Kxb7 {[%emt 0:00:08]} Qb6+ {[%emt 0:00:25]} 54. Ka8 {[%emt 0:00:26]} Qa7# {[%emt 0:00:05]} 1-0

[Event "GER-ch Youth U10W 2020"]
[Site "Willingen"]
[Date "2020.10.27"]
[Round "1.16"]
[White "Zimmermann, Lilly Marie"]
[Black "Zhu, Jenny"]
[Result "0-1"]
[ECO "C44"]
[WhiteElo "851"]
[BlackElo "1573"]
[Annotator "NA RC"]
[PlyCount "66"]
[EventDate "2020.10.27"]
[EventType "swiss"]
[EventRounds "7"]
[EventCountry "GER"]
[SourceTitle "playchess.com"]
[Source "ChessBase"]
[SourceQuality "1"]
[TimeControl "40/4500+30:900+30"]

1. e4 {[%emt 0:00:00]} e5 {[%emt 0:00:00]} 2. Nf3 {[%emt 0:00:00]} Nc6 3. d4 {[%emt 0:00:00]} exd4 {[%emt 0:00:00]} 4. Nxd4 {[%emt 0:00:00]} Bd6 {[%emt 0:01:10]} 5. Bc4 {[%emt 0:00:32]} Ne5 {[%emt 0:01:56]} 6. O-O {[%emt 0:01:00]} Nxc4 {[%emt 0:00:42]} 7. b3 {[%emt 0:01:26]} Ne5 {[%emt 0:01:39]} 8. Nf3 {[%emt 0:01:17]} Qf6 {[%emt 0:01:14]} 9. Ng5 {[%emt 0:00:40]} h6 10. Qh5 g6 {[%emt 0:06:17]} 11. Qh4 {[%emt 0:02:48]} hxg5 {[%emt 0:03:26]} 12. Qg3 {[%emt 0:00:30]} Nc6 {[%emt 0:01:56]} 13. Bxg5 {[%emt 0:00:21]} Qxa1 {[%emt 0:01:25]} 14. Qe3 {[%emt 0:01:31]} Qe5 {[%emt 0:00:35]} 15. g3 {[%emt 0:00:51]} Bc5 {[%emt 0:01:10]} 16. Qd2 {[%emt 0:00:33]} Nf6 {[%emt 0:01:53]} 17. Bf4 {[%emt 0:01:12]} Qh5 {[%emt 0:00:00]} 18. Re1 {[%emt 0:01:21]} Qxh2+ {[%emt 0:01:44]} 19. Kf1 {[%emt 0:00:38]} Qh3+ {[%emt 0:01:09]} 20. Ke2 {[%emt 0:00:29]} Nd4+ {[%emt 0:02:22]} 21. Kd1 {[%emt 0:00:27]} Nf3 {[%emt 0:01:08]} 22. Qe2 {[%emt 0:00:26]} Nxe1 {[%emt 0:00:33]} 23. e5 {[%emt 0:00:37]} Nd5 {[%emt 0:00:47]} 24. e6 {[%emt 0:00:43]} dxe6 {[%emt 0:01:15]} 25. Qb5+ {[%emt 0:00:35]} Bd7 {[%emt 0:01:03]} 26. Qxc5 {[%emt 0:00:00]} Nxf4 {[%emt 0:00:00]} 27. gxf4 {[%emt 0:00:12]} Qh1 {[%emt 0:00:42]} 28. Qxc7 {[%emt 0:00:25]} Rc8 {[%emt 0:00:44]} 29. Qe5 {[%emt 0:00:30]} Nf3+ {[%emt 0:00:58]} 30. Ke2 {[%emt 0:00:36]} Nxe5 {[%emt 0:00:26]} 31. Nd2 {[%emt 0:00:31]} Rxc2 32. a4 Qf3+ {[%emt 0:01:46]} 33. Ke1 {[%emt 0:01:07]} Rc1# 0-1

[Event "GER-ch Youth U10W 2020"]
[Site "Willingen"]
[Date "2020.10.27"]
[Round "1.17"]
[White "Le, Thao-Linh"]
[Black "Tu, Audrey"]
[Result "1-0"]
[ECO "C30"]
[WhiteElo "1121"]
[BlackElo "754"]
[Annotator "NA RC"]
[PlyCount "81"]
[EventDate "2020.10.27"]
[EventType "swiss"]
[EventRounds "7"]
[EventCountry "GER"]
[SourceTitle "playchess.com"]
[Source "ChessBase"]
[SourceQuality "1"]
[TimeControl "40/4500+30:900+30"]

1. e4 {[%emt 0:00:00]} e5 {[%emt 0:00:00]} 2. f4 {[%emt 0:00:00]} Bc5 {[%emt 0:00:00]} 3. Nf3 {[%emt 0:00:52]} d6 {[%emt 0:00:10]} 4. Bc4 {[%emt 0:01:39]} Nf6 {[%emt 0:00:50]} 5. Nc3 {[%emt 0:01:28]} O-O {[%emt 0:00:36]} 6. d4 {[%emt 0:01:36]} exd4 {[%emt 0:00:24]} 7. Nxd4 {[%emt 0:00:36]} Re8 {[%emt 0:03:27]} 8. O-O {[%emt 0:00:34]} Nc6 {[%emt 0:05:50]} 9. Be3 Ng4 {[%emt 0:02:58]} 10. Nxc6 {[%emt 0:02:07]} bxc6 {[%emt 0:01:26]} 11. Bxc5 {[%emt 0:00:41]} dxc5 {[%emt 0:02:36]} 12. Rf3 {[%emt 0:08:47]} Qxd1+ 13. Rxd1 Rb8 {[%emt 0:07:34]} 14. b3 {[%emt 0:02:17]} h6 {[%emt 0:02:04]} 15. e5 {[%emt 0:01:39]} Bf5 {[%emt 0:01:57]} 16. Rd2 {[%emt 0:01:44]} Kh8 {[%emt 0:05:07]} 17. h3 {[%emt 0:00:29]} f6 {[%emt 0:06:08]} 18. hxg4 {[%emt 0:01:07]} Bxg4 {[%emt 0:00:30]} 19. Bf7 {[%emt 0:03:01]} Rf8 {[%emt 0:01:14]} 20. Rg3 {[%emt 0:00:31]} Rxf7 {[%emt 0:01:10]} 21. Rxg4 {[%emt 0:01:00]} h5 {[%emt 0:00:45]} 22. Rg3 {[%emt 0:00:18]} fxe5 {[%emt 0:01:06]} 23. fxe5 {[%emt 0:01:17]} Re8 {[%emt 0:00:32]} 24. Rg5 {[%emt 0:01:34]} g6 {[%emt 0:00:43]} 25. Rxg6 {[%emt 0:01:11]} Rxe5 {[%emt 0:00:21]} 26. Rh6+ {[%emt 0:00:35]} Kg7 {[%emt 0:00:31]} 27. Rxc6 {[%emt 0:00:56]} Re1+ {[%emt 0:01:19]} 28. Kh2 {[%emt 0:00:20]} Rf4 {[%emt 0:02:04]} 29. Rd7+ {[%emt 0:02:17]} Kf8 {[%emt 0:01:41]} 30. Rcxc7 {[%emt 0:04:43]} Re8 {[%emt 0:00:37]} 31. Rh7 {[%emt 0:02:59]} Rg4 {[%emt 0:00:50]} 32. Rxh5 {[%emt 0:03:24]} Rg7 {[%emt 0:01:09]} 33. Rh8+ Rg8 34. Rhh7 {[%emt 0:02:14]} a5 {[%emt 0:03:59]} 35. a4 {[%emt 0:01:49]} c4 {[%emt 0:01:50]} 36. bxc4 {[%emt 0:00:48]} Rg7 {[%emt 0:01:57]} 37. Rhxg7 {[%emt 0:00:27]} Rd8 {[%emt 0:01:21]} 38. Ra7 {[%emt 0:01:36]} Rc8 {[%emt 0:01:05]} 39. Rgc7 {[%emt 0:00:52]} Re8 {[%emt 0:00:19]} 40. Rh7 {[%emt 0:00:29]} Rc8 {[%emt 0:00:43]} 41. Rh8# 1-0